[Event "Orsha A 2021"]
[Site "Orsha"]
[Date "2021.04.07"]
[Round "3.3"]
[White "Apryshko, Gleb"]
[Black "Navumenka, Mikhei"]
[Result "0-1"]
[ECO "A00"]
[WhiteElo "2391"]
[BlackElo "2052"]
[Annotator "RC"]
[PlyCount "94"]
[EventDate "2021.04.06"]
[EventType "swiss"]
[EventCountry "BLR"]
[SourceTitle "playchess.com"]
[Source "ChessBase"]
[SourceQuality "1"]
[TimeControl "5400+30"]

1. g3 {[%emt 0:00:00]} c5 {[%emt 0:00:56]} 2. Bg2 {[%emt 0:00:00]} Nc6 {[%emt 0:00:07]} 3. e3 {[%emt 0:00:00]} g6 {[%emt 1:30:27]} 4. Ne2 Bg7 {[%emt 0:00:00]} 5. d4 {[%emt 0:00:00]} d5 {[%emt 0:00:00]} 6. Nbc3 {[%emt 0:01:08]} e6 {[%emt 0:00:00]} 7. dxc5 {[%emt 0:20:55]} Qa5 {[%emt 0:00:00]} 8. O-O {[%emt 0:00:01]} Nge7 {[%emt 0:00:00]} 9. Nf4 {[%emt 0:08:29]} Qxc5 {[%emt 0:00:00]} 10. e4 {[%emt 0:00:01]} d4 {[%emt 0:00:00]} 11. Nd3 {[%emt 0:00:07]} Qd6 {[%emt 0:00:00]} 12. Nb5 {[%emt 0:05:13]} Qd8 {[%emt 0:00:00]} 13. a4 {[%emt 0:02:30]} O-O {[%emt 0:00:00]} 14. b3 {[%emt 0:01:29]} a6 {[%emt 0:00:00]} 15. Na3 {[%emt 0:00:02]} e5 {[%emt 0:00:00]} 16. Bd2 {[%emt 0:02:24]} f5 {[%emt 0:00:00]} 17. Nc4 {[%emt 0:01:39]} Qc7 {[%emt 0:00:00]} 18. Nb4 {[%emt 0:18:35]} fxe4 {[%emt 0:00:00]} 19. Bxe4 {[%emt 0:00:09]} Be6 {[%emt 0:00:00]} 20. a5 {[%emt 0:02:39]} Rad8 {[%emt 0:00:00]} 21. Nb6 {[%emt 0:02:17]} Qd6 {[%emt 0:00:00]} 22. Nd3 {[%emt 0:04:41]} Nd5 {[%emt 0:00:00]} 23. Nxd5 {[%emt 0:01:53]} Bxd5 {[%emt 0:00:00]} 24. Qe2 {[%emt 0:00:01]} Bxe4 {[%emt 0:00:00]} 25. Qxe4 {[%emt 0:00:01]} Qd5 {[%emt 0:00:00]} 26. Rfe1 {[%emt 0:00:35]} Qxe4 {[%emt 0:00:00]} 27. Rxe4 {[%emt 0:00:02]} Rd5 {[%emt 0:00:00]} 28. Ra4 {[%emt 0:04:01]} Rf7 {[%emt 0:00:00]} 29. Kg2 {[%emt 0:01:31]} Bf8 {[%emt 0:00:00]} 30. f4 {[%emt 0:05:49]} exf4 {[%emt 0:00:00]} 31. Nxf4 {[%emt 0:00:11]} Rc5 {[%emt 0:00:00]} 32. Rc4 {[%emt 0:00:00]} Rxc4 {[%emt 0:00:00]} 33. bxc4 {[%emt 0:00:01]} Rf5 {[%emt 0:00:00]} 34. Nd5 {[%emt 0:02:47]} Bc5 {[%emt 0:00:00]} 35. g4 {[%emt 0:02:08]} Re5 {[%emt 0:00:00]} 36. Kf3 {[%emt 0:00:11]} Kf7 {[%emt 0:00:00]} 37. g5 {[%emt 0:02:12]} Rf5+ {[%emt 0:01:19]} 38. Ke2 {[%emt 0:00:21]} Ne5 {[%emt 0:00:44]} 39. Rh4 {[%emt 0:02:34]} d3+ {[%emt 0:01:14]} 40. cxd3 {[%emt 0:02:38]} Rf2+ {[%emt 0:00:05]} 41. Kd1 {[%emt 0:00:03]} Rxd2+ {[%emt 0:00:15]} 42. Kc1 {[%emt 0:00:04]} Rf2 {[%emt 0:03:50]} 43. Rxh7+ {[%emt 0:00:22]} Ke6 {[%emt 0:01:03]} 44. Rxb7 {[%emt 0:03:06]} Nxd3+ {[%emt 0:00:08]} 45. Kd1 {[%emt 0:00:31]} Rxh2 {[%emt 0:02:10]} 46. Nc7+ {[%emt 0:00:10]} Kf5 {[%emt 0:00:40]} 47. Nd5 {[%emt 0:03:31]} Kxg5 {[%emt 0:00:50]} 0-1

[Event "Orsha A 2021"]
[Site "Orsha"]
[Date "2021.04.07"]
[Round "4.4"]
[White "Sargsyan, Anna M."]
[Black "Naumovich, Yaroslav"]
[Result "1-0"]
[ECO "D37"]
[WhiteElo "2380"]
[BlackElo "2022"]
[Annotator "RC"]
[PlyCount "61"]
[EventDate "2021.04.06"]
[EventType "swiss"]
[EventCountry "BLR"]
[SourceTitle "playchess.com"]
[Source "ChessBase"]
[SourceQuality "1"]
[TimeControl "5400+30"]

1. d4 {[%emt 0:00:00]} Nf6 {[%emt 0:00:00]} 2. c4 {[%emt 0:00:00]} e6 {[%emt 0:00:00]} 3. Nf3 {[%emt 0:00:00]} d5 {[%emt 0:00:00]} 4. Nc3 {[%emt 0:00:00]} Be7 {[%emt 0:00:00]} 5. Bf4 {[%emt 0:00:00]} O-O {[%emt 0:00:13]} 6. e3 {[%emt 0:00:00]} b6 {[%emt 0:02:01]} 7. cxd5 {[%emt 0:00:04]} exd5 {[%emt 0:03:07]} 8. Bd3 {[%emt 0:00:09]} Bb7 {[%emt 0:00:06]} 9. O-O {[%emt 0:00:07]} Nbd7 {[%emt 0:00:10]} 10. Rc1 {[%emt 0:00:07]} c5 {[%emt 0:01:39]} 11. dxc5 {[%emt 0:00:12]} bxc5 {[%emt 0:00:15]} 12. Bf5 {[%emt 0:04:21]} Nb6 {[%emt 0:03:48]} 13. Qd3 {[%emt 0:08:24]} g6 {[%emt 0:07:16]} 14. Bh3 {[%emt 0:00:08]} Bc8 {[%emt 0:00:07]} 15. Bxc8 {[%emt 0:00:31]} Rxc8 {[%emt 0:00:09]} 16. Rfd1 {[%emt 0:01:17]} Qd7 {[%emt 0:11:10]} 17. Qa6 {[%emt 0:06:50]} Nh5 {[%emt 0:05:09]} 18. Be5 {[%emt 0:04:55]} Rfd8 {[%emt 0:08:24]} 19. Nb5 {[%emt 0:05:09]} Rc6 {[%emt 0:06:58]} 20. Qxa7 {[%emt 0:10:18]} Re6 {[%emt 0:09:01]} 21. Qxd7 {[%emt 0:01:11]} Rxd7 {[%emt 0:00:05]} 22. b3 {[%emt 0:01:09]} Nf6 {[%emt 0:08:12]} 23. b4 {[%emt 0:04:25]} Ng4 {[%emt 0:11:00]} 24. bxc5 {[%emt 0:06:31]} Bxc5 {[%emt 0:00:48]} 25. Bf4 {[%emt 0:00:31]} Bf8 {[%emt 0:01:53]} 26. h3 {[%emt 0:00:03]} Nh6 {[%emt 0:00:56]} 27. Nc7 {[%emt 0:00:46]} Re4 {[%emt 0:02:36]} 28. Rc6 {[%emt 0:04:48]} Rb4 {[%emt 0:03:31]} 29. a3 {[%emt 0:00:19]} Rxf4 {[%emt 0:04:47]} 30. exf4 {[%emt 0:00:09]} Bxa3 {[%emt 0:02:19]} 31. Nb5 {[%emt 0:00:21]} 1-0

[Event "Orsha A 2021"]
[Site "Orsha"]
[Date "2021.04.07"]
[Round "4.6"]
[White "Suslov, Dmirtry"]
[Black "Apryshko, Gleb"]
[Result "0-1"]
[ECO "B06"]
[WhiteElo "1757"]
[BlackElo "2391"]
[Annotator "RC"]
[PlyCount "46"]
[EventDate "2021.04.06"]
[EventType "swiss"]
[EventCountry "BLR"]
[SourceTitle "playchess.com"]
[Source "ChessBase"]
[SourceQuality "1"]
[TimeControl "5400+30"]

1. d4 {[%emt 0:00:00]} g6 {[%emt 0:03:52]} 2. e4 {[%emt 0:00:00]} Bg7 {[%emt 0:00:05]} 3. c3 {[%emt 0:00:00]} d6 {[%emt 0:01:18]} 4. Bd3 {[%emt 0:01:38]} e5 {[%emt 0:00:04]} 5. Nf3 {[%emt 0:00:56]} Nc6 {[%emt 0:00:12]} 6. d5 {[%emt 0:03:07]} Nce7 {[%emt 0:00:02]} 7. c4 {[%emt 0:00:31]} f5 {[%emt 0:00:02]} 8. Nc3 {[%emt 0:02:38]} Nf6 {[%emt 0:00:04]} 9. Nd2 {[%emt 0:07:05]} c6 {[%emt 0:00:29]} 10. f3 {[%emt 0:01:43]} O-O {[%emt 0:00:07]} 11. Qb3 {[%emt 0:06:38]} Kh8 {[%emt 0:05:40]} 12. O-O {[%emt 0:04:08]} f4 {[%emt 0:00:07]} 13. g4 {[%emt 0:09:02]} fxg3 {[%emt 0:01:09]} 14. hxg3 {[%emt 0:00:07]} b5 {[%emt 0:22:07]} 15. dxc6 {[%emt 0:16:08]} Nxc6 {[%emt 0:00:06]} 16. Nxb5 {[%emt 0:00:17]} Nh5 {[%emt 0:03:14]} 17. Kf2 {[%emt 0:13:04]} a6 {[%emt 0:00:08]} 18. Nc3 {[%emt 0:01:30]} Nd4 {[%emt 0:02:50]} 19. Qd1 {[%emt 0:00:40]} Nxg3 {[%emt 0:00:01]} 20. Rg1 {[%emt 0:01:34]} Nh5 {[%emt 0:00:18]} 21. Be2 {[%emt 0:04:03]} Qh4+ {[%emt 0:00:34]} 22. Ke3 {[%emt 0:01:06]} Bh6+ {[%emt 0:00:01]} 23. Kd3 {[%emt 0:00:38]} Nf4+ {[%emt 0:00:05]} 0-1

[Event "Orsha A 2021"]
[Site "Orsha"]
[Date "2021.04.09"]
[Round "7.2"]
[White "Stupak, Kirill"]
[Black "Tsaruk, Maksim"]
[Result "1/2-1/2"]
[ECO "D40"]
[WhiteElo "2501"]
[BlackElo "2306"]
[Annotator "ChessBase"]
[PlyCount "68"]
[EventDate "2021.04.06"]
[EventType "swiss"]
[EventCountry "BLR"]
[SourceTitle "playchess.com"]
[Source "ChessBase"]
[SourceQuality "1"]
[TimeControl "5400+30"]

1. d4 {[%emt 0:02:11]} Nf6 {[%emt 0:00:00]} 2. c4 {[%emt 0:00:25]} e6 {[%emt 0:00:00]} 3. Nc3 {[%emt 0:00:02]} d5 {[%emt 0:00:00]} 4. Nf3 {[%emt 0:01:01]} c5 {[%emt 0:00:00]} 5. e3 {[%emt 0:02:24]} Nc6 {[%emt 0:00:07]} 6. a3 {[%emt 0:00:04]} dxc4 {[%emt 0:05:12]} 7. Bxc4 {[%emt 0:01:13]} a6 {[%emt 0:00:18]} 8. O-O {[%emt 0:05:26]} b5 {[%emt 0:02:27]} 9. Ba2 {[%emt 0:00:59]} Bb7 {[%emt 0:00:06]} 10. Qe2 {[%emt 0:06:22]} Be7 {[%emt 0:00:45]} 11. Rd1 {[%emt 0:05:33]} Qc7 {[%emt 0:07:40]} 12. Qc2 {[%emt 0:22:11]} Qb6 {[%emt 0:35:20]} 13. d5 {[%emt 0:19:15]} exd5 {[%emt 0:00:06]} 14. Nxd5 {[%emt 0:00:02]} Nxd5 {[%emt 0:00:05]} 15. Bxd5 {[%emt 0:00:03]} O-O {[%emt 0:03:22]} 16. e4 {[%emt 0:00:36]} c4 {[%emt 0:10:30]} 17. Be3 {[%emt 0:09:03]} Qc7 {[%emt 0:00:07]} 18. e5 {[%emt 0:02:10]} Nd8 {[%emt 0:12:06]} 19. b3 {[%emt 0:05:48]} Rc8 {[%emt 0:01:53]} 20. bxc4 {[%emt 0:02:15]} Bxd5 {[%emt 0:01:00]} 21. Rxd5 {[%emt 0:01:30]} Qxc4 {[%emt 0:00:05]} 22. Qxc4 {[%emt 0:03:06]} Rxc4 {[%emt 0:00:06]} 23. Rd4 {[%emt 0:01:41]} Rc3 {[%emt 0:01:41]} 24. a4 {[%emt 0:01:41]} Bc5 {[%emt 0:11:53]} 25. axb5 {[%emt 0:07:29]} axb5 {[%emt 0:00:19]} 26. Rd5 {[%emt 0:01:04]} Bxe3 {[%emt 0:00:08]} 27. fxe3 {[%emt 0:00:04]} Rxe3 {[%emt 0:03:58]} 28. Ra8 {[%emt 0:00:17]} Ne6 {[%emt 0:00:08]} 29. Rxf8+ {[%emt 0:00:04]} Kxf8 {[%emt 0:00:04]} 30. Rxb5 {[%emt 0:00:04]} g5 {[%emt 0:00:47]} 31. h3 {[%emt 0:01:37]} Kg7 {[%emt 0:00:59]} 32. Rb2 {[%emt 0:02:01]} h5 {[%emt 0:00:34]} 33. Kf2 {[%emt 0:01:03]} Re4 {[%emt 0:00:08]} 34. Rb5 {[%emt 0:01:28]} Kg6 {[%emt 0:03:21]} 1/2-1/2

[Event "Orsha A 2021"]
[Site "Orsha"]
[Date "2021.04.09"]
[Round "7.3"]
[White "Poliakova, Varvara"]
[Black "Zarubitski, Viachaslau"]
[Result "0-1"]
[ECO "B00"]
[WhiteElo "1918"]
[BlackElo "2456"]
[Annotator "ChessBase"]
[PlyCount "70"]
[EventDate "2021.04.06"]
[EventType "swiss"]
[EventCountry "BLR"]
[SourceTitle "playchess.com"]
[Source "ChessBase"]
[SourceQuality "1"]
[TimeControl "5400+30"]

1. e4 {[%emt 0:00:00]} e6 {[%emt 1:30:30]} 2. d4 {[%emt 1:31:00]} b6 {[%emt 0:00:03]} 3. Bd3 {[%emt 0:03:08]} Bb7 {[%emt 0:00:21]} 4. c3 {[%emt 0:01:36]} c5 {[%emt 0:03:05]} 5. Ne2 {[%emt 0:03:27]} Nf6 {[%emt 0:00:41]} 6. Nd2 {[%emt 0:00:57]} d5 {[%emt 0:09:49]} 7. e5 {[%emt 0:01:05]} Nfd7 {[%emt 0:00:02]} 8. Nf3 {[%emt 0:00:47]} Ba6 {[%emt 0:02:28]} 9. Bc2 {[%emt 0:01:49]} Nc6 {[%emt 0:00:47]} 10. a3 {[%emt 0:01:37]} Qc7 {[%emt 0:02:12]} 11. O-O {[%emt 0:04:27]} Rc8 {[%emt 0:03:48]} 12. Bb1 {[%emt 0:09:16]} Na5 {[%emt 0:03:51]} 13. Re1 {[%emt 0:01:37]} Bxe2 {[%emt 0:19:26]} 14. Rxe2 {[%emt 0:04:05]} cxd4 {[%emt 0:03:13]} 15. Nxd4 {[%emt 0:01:00]} Nc6 {[%emt 0:01:46]} 16. Nb5 {[%emt 0:01:50]} Qb8 {[%emt 0:00:52]} 17. c4 {[%emt 0:06:50]} dxc4 {[%emt 0:03:37]} 18. Nd6+ {[%emt 0:01:40]} Bxd6 {[%emt 0:00:05]} 19. exd6 {[%emt 0:00:02]} Nce5 {[%emt 0:04:08]} 20. Bf4 {[%emt 0:05:15]} Ng6 {[%emt 0:02:03]} 21. Bg3 {[%emt 0:00:07]} O-O {[%emt 0:00:40]} 22. h4 {[%emt 0:07:20]} Rc5 {[%emt 0:01:15]} 23. h5 {[%emt 0:04:01]} Nge5 {[%emt 0:03:37]} 24. Rd2 {[%emt 0:06:38]} f5 {[%emt 0:33:53]} 25. f4 {[%emt 0:04:36]} Ng4 {[%emt 0:00:54]} 26. Qe2 {[%emt 0:04:56]} Qe8 {[%emt 0:03:19]} 27. Bc2 {[%emt 0:02:31]} Rf6 {[%emt 0:03:39]} 28. Bh4 {[%emt 0:01:39]} Qxh5 {[%emt 0:03:47]} 29. g3 {[%emt 0:00:02]} Rh6 {[%emt 0:00:18]} 30. Qf3 {[%emt 0:01:08]} Ngf6 {[%emt 0:02:08]} 31. Qa8+ {[%emt 0:01:14]} Qe8 {[%emt 0:00:28]} 32. Qxa7 {[%emt 0:01:11]} Rxh4 {[%emt 0:06:02]} 33. gxh4 {[%emt 0:00:13]} Nd5 {[%emt 0:00:05]} 34. Rf2 {[%emt 0:04:36]} Ra5 {[%emt 0:01:09]} 35. Qb7 {[%emt 0:02:42]} Nc5 {[%emt 0:00:05]} 0-1

[Event "Orsha A 2021"]
[Site "Orsha"]
[Date "2021.04.09"]
[Round "7.4"]
[White "Navumenka, Mikhei"]
[Black "Barseghyan, Armen Ar."]
[Result "1/2-1/2"]
[ECO "E10"]
[WhiteElo "2052"]
[BlackElo "2358"]
[Annotator "NA"]
[PlyCount "65"]
[EventDate "2021.04.06"]
[EventType "swiss"]
[EventCountry "BLR"]
[SourceTitle "playchess.com"]
[Source "ChessBase"]
[SourceQuality "1"]
[TimeControl "5400+30"]

1. d4 {[%emt 0:00:00]} Nf6 {[%emt 0:00:00]} 2. c4 {[%emt 0:00:09]} e6 {[%emt 0:00:00]} 3. Nf3 {[%emt 0:00:06]} a6 {[%emt 0:00:34]} 4. g3 {[%emt 1:31:45]} b5 {[%emt 0:00:22]} 5. b3 {[%emt 0:01:40]} Bb4+ {[%emt 0:01:33]} 6. Bd2 {[%emt 0:00:26]} Be7 {[%emt 1:30:31]} 7. Bg2 {[%emt 0:00:09]} Bb7 {[%emt 0:00:05]} 8. O-O {[%emt 0:00:31]} O-O {[%emt 0:00:42]} 9. Nc3 {[%emt 0:07:47]} Ne4 {[%emt 0:01:52]} 10. Ne1 {[%emt 0:02:42]} Nxc3 {[%emt 0:00:13]} 11. Bxc3 {[%emt 0:00:06]} Bxg2 {[%emt 1:29:56]} 12. Nxg2 {[%emt 0:00:51]} d5 {[%emt 0:08:08]} 13. Qc2 {[%emt 0:03:28]} c6 {[%emt 1:22:42]} 14. e4 {[%emt 1:16:55]} Nd7 {[%emt 0:01:37]} 15. Rfe1 {[%emt 0:01:36]} dxe4 {[%emt 0:04:32]} 16. Qxe4 {[%emt 0:00:46]} Rc8 {[%emt 0:00:04]} 17. Rad1 {[%emt 0:01:14]} Nf6 {[%emt 1:04:54]} 18. Qe2 {[%emt 1:09:16]} Qb6 {[%emt 0:06:16]} 19. Nf4 {[%emt 1:08:27]} Rfe8 {[%emt 0:05:02]} 20. Qf3 $11 {[%emt 0:03:45]} bxc4 {[%emt 0:34:43]} 21. bxc4 {[%emt 0:00:33]} a5 {[%emt 0:00:35]} 22. d5 {[%emt 0:12:29]} cxd5 {[%emt 0:00:25]} 23. cxd5 {[%emt 0:00:44]} Nxd5 {[%emt 0:04:54]} 24. Nxd5 {[%emt 0:07:18]} exd5 {[%emt 0:00:17]} 25. Bxg7 {[%emt 0:01:13]} Kxg7 {[%emt 0:01:28]} 26. Rxe7 {[%emt 0:00:14]} Rxe7 {[%emt 0:00:38]} 27. Qg4+ {[%emt 0:00:05]} Qg6 {[%emt 0:00:54]} 28. Qxc8 {[%emt 0:00:11]} Re2 {[%emt 0:08:52]} 29. a3 {[%emt 0:18:07]} Qe4 {[%emt 0:01:38]} 30. Qc3+ {[%emt 0:00:10]} f6 {[%emt 0:00:05]} 31. Qxa5 {[%emt 0:02:25]} Kg6 {[%emt 0:00:41]} 32. Qc3 {[%emt 0:02:15]} d4 {[%emt 0:01:18]} 33. Qb3 {[%emt 0:01:46]} 1/2-1/2

[Event "Orsha A 2021"]
[Site "Orsha"]
[Date "2021.04.09"]
[Round "7.5"]
[White "Apryshko, Gleb"]
[Black "Sarychev, Sergey"]
[Result "1-0"]
[ECO "A08"]
[WhiteElo "2391"]
[BlackElo "1904"]
[Annotator "NA"]
[PlyCount "37"]
[EventDate "2021.04.06"]
[EventType "swiss"]
[EventCountry "BLR"]
[SourceTitle "playchess.com"]
[Source "ChessBase"]
[SourceQuality "1"]
[TimeControl "5400+30"]

1. e4 {[%emt 0:04:26]} e6 {[%emt 0:00:00]} 2. d3 {[%emt 0:00:03]} d5 {[%emt 0:02:59]} 3. Nd2 {[%emt 0:00:02]} c5 {[%emt 0:00:10]} 4. Ngf3 {[%emt 0:00:03]} Nc6 {[%emt 0:00:28]} 5. g3 {[%emt 0:00:01]} Bd6 {[%emt 0:00:12]} 6. Bg2 {[%emt 0:00:04]} Nge7 {[%emt 0:00:08]} 7. O-O {[%emt 0:00:11]} O-O {[%emt 0:00:10]} 8. Nh4 {[%emt 0:03:57]} g5 {[%emt 0:04:07]} 9. Nhf3 {[%emt 0:00:10]} f6 {[%emt 0:00:18]} 10. exd5 {[%emt 0:00:25]} exd5 {[%emt 0:01:52]} 11. c4 {[%emt 0:00:09]} Bf5 {[%emt 0:03:08]} 12. cxd5 {[%emt 0:00:33]} Nb4 {[%emt 0:03:29]} 13. Ne4 {[%emt 0:00:23]} Nbxd5 {[%emt 0:06:56]} 14. b4 {[%emt 0:35:54]} (14. h4 $16) 14... cxb4 {[%emt 0:25:03]} 15. Qb3 {[%emt 0:02:26]} (15. h4 $14) 15... a5 {[%emt 0:06:30]} 16. a4 $15 {[%emt 0:01:43]} Kg7 {[%emt 0:15:39]} 17. Bb2 {[%emt 0:00:07]} g4 {[%emt 0:05:20]} 18. Nd4 {[%emt 0:00:38]} Bc8 {[%emt 0:04:53]} 19. Ng5 {[%emt 0:01:55]} 1-0

[Event "Orsha A 2021"]
[Site "Orsha"]
[Date "2021.04.09"]
[Round "7.6"]
[White "Klachkou, Platon"]
[Black "Siniauski, Artsiom"]
[Result "0-1"]
[ECO "C12"]
[WhiteElo "1756"]
[BlackElo "2277"]
[Annotator "NA"]
[PlyCount "65"]
[EventDate "2021.04.06"]
[EventType "swiss"]
[EventCountry "BLR"]
[SourceTitle "playchess.com"]
[Source "ChessBase"]
[SourceQuality "1"]
[TimeControl "5400+30"]

1. e4 {[%emt 0:00:55]} e6 {[%emt 0:00:02]} 2. d4 {[%emt 0:00:00]} d5 {[%emt 0:00:03]} 3. Nc3 {[%emt 0:00:00]} Nf6 {[%emt 0:00:17]} 4. Bg5 {[%emt 0:00:00]} Bb4 {[%emt 0:00:38]} 5. e5 {[%emt 0:00:00]} h6 {[%emt 0:00:08]} 6. exf6 {[%emt 0:00:00]} hxg5 {[%emt 0:00:07]} 7. fxg7 {[%emt 0:00:00]} Rg8 {[%emt 0:00:04]} 8. a3 {[%emt 0:00:00]} Bxc3+ {[%emt 0:03:15]} 9. bxc3 {[%emt 0:00:00]} Qf6 {[%emt 0:00:18]} 10. c4 {[%emt 0:00:00]} Qxg7 {[%emt 0:07:58]} 11. cxd5 {[%emt 0:00:00]} exd5 {[%emt 0:00:07]} 12. Bd3 {[%emt 0:00:00]} Nc6 {[%emt 0:00:32]} 13. Ne2 {[%emt 0:00:00]} Be6 {[%emt 0:01:24]} 14. c3 {[%emt 0:00:00] [#]} O-O-O $1 {[%emt 0:02:36]} 15. Rb1 {[%emt 0:00:00]} Rd6 {[%emt 0:03:36]} 16. Qa4 {[%emt 0:00:00]} Qh6 {[%emt 0:06:04]} 17. Ng3 {[%emt 0:00:00]} g4 {[%emt 0:07:08]} 18. Qd1 {[%emt 0:00:00]} Re8 {[%emt 0:03:28]} 19. Kf1 {[%emt 0:00:00]} Kb8 {[%emt 0:07:54]} 20. Qc1 {[%emt 0:00:00]} Qh8 {[%emt 0:14:32]} 21. Ne2 {[%emt 0:00:00]} Na5 {[%emt 0:02:50]} 22. Nf4 {[%emt 0:10:30]} Nc4 {[%emt 0:37:59]} 23. g3 $15 {[%emt 0:00:00]} Qf6 {[%emt 0:02:08]} 24. Kg2 {[%emt 0:00:00]} Bf5 {[%emt 0:00:45]} 25. Bxf5 {[%emt 0:12:00]} Qxf5 {[%emt 0:00:05]} 26. Re1 {[%emt 0:00:00]} Rh8 {[%emt 0:01:26]} 27. Qd1 {[%emt 0:00:00]} Rdh6 {[%emt 0:01:38]} 28. h4 {[%emt 0:00:00]} gxh3+ {[%emt 0:00:35]} 29. Kh2 {[%emt 0:00:00]} Re6 {[%emt 0:02:00]} 30. Rxe6 {[%emt 0:00:00]} fxe6 {[%emt 0:00:06]} 31. Qe1 {[%emt 0:00:00]} e5 {[%emt 0:00:54]} 32. dxe5 {[%emt 0:00:00]} Nxe5 {[%emt 0:00:14]} 33. Qd1 {[%emt 0:00:00]} 0-1

[Event "Orsha A 2021"]
[Site "Orsha"]
[Date "2021.04.09"]
[Round "7.7"]
[White "Ulasevich, Sergei"]
[Black "Klachkou, Tsimafei"]
[Result "1-0"]
[ECO "B31"]
[WhiteElo "2170"]
[BlackElo "1992"]
[Annotator "NA"]
[PlyCount "108"]
[EventDate "2021.04.06"]
[EventType "swiss"]
[EventCountry "BLR"]
[SourceTitle "playchess.com"]
[Source "ChessBase"]
[SourceQuality "1"]
[TimeControl "5400+30"]

1. e4 {[%emt 0:00:00]} c5 {[%emt 0:00:00]} 2. Nf3 {[%emt 0:00:00]} Nc6 {[%emt 0:00:00]} 3. Bb5 {[%emt 0:00:11]} g6 {[%emt 1:31:30]} 4. O-O {[%emt 1:31:49]} Bg7 {[%emt 0:00:06]} 5. c3 {[%emt 0:00:13]} d5 {[%emt 0:02:49]} 6. Qa4 {[%emt 0:06:50]} Qd6 {[%emt 0:13:23]} 7. d4 {[%emt 0:16:05]} dxe4 {[%emt 0:04:36]} 8. dxc5 {[%emt 0:01:33]} Qxc5 {[%emt 0:01:31]} 9. Be3 {[%emt 0:00:26]} Qd6 {[%emt 0:00:52]} 10. Rd1 {[%emt 0:09:45]} Qc7 {[%emt 0:01:00] [#]} 11. Qxe4 {[%emt 0:11:58]} (11. Bf4 $1 $16 {[%cal Rf4c7][%mdl 512]} Qb6 (11... e5 12. Nxe5) 12. Nd4 Bxd4 13. cxd4) 11... Nf6 {[%emt 0:02:03]} 12. Qe5 {[%emt 0:00:40]} Qxe5 {[%emt 0:00:05]} 13. Nxe5 {[%emt 0:00:05]} Bd7 {[%emt 0:00:07]} 14. Nxd7 {[%emt 0:48:56]} Nxd7 {[%emt 0:00:01]} 15. Bxc6 {[%emt 0:00:14]} bxc6 {[%emt 0:00:01]} 16. Nd2 {[%emt 0:00:12]} Be5 {[%emt 0:09:00]} 17. a4 {[%emt 0:01:43]} a6 {[%emt 0:02:26]} 18. Nc4 {[%emt 0:01:41]} Bc7 {[%emt 0:00:43]} 19. b4 {[%emt 0:03:49]} Ne5 {[%emt 0:00:54]} 20. Nd2 {[%emt 0:05:40]} Ng4 {[%emt 0:02:16]} 21. Nf3 $11 {[%emt 0:01:29]} (21. Bd4 $5 {[%cal Rd4h8]} Bxh2+ 22. Kf1 $14) 21... Nxe3 {[%emt 0:07:45]} 22. fxe3 {[%emt 0:00:03]} e5 {[%emt 0:00:24]} 23. e4 {[%emt 0:01:08]} Ke7 {[%emt 0:00:48]} 24. Kf2 {[%emt 0:01:17]} f5 {[%emt 0:01:22]} 25. Nd2 {[%emt 0:01:06]} Bb6+ {[%emt 0:03:11]} 26. Ke2 {[%emt 0:00:41]} Rhd8 {[%emt 0:00:31]} 27. Nc4 {[%emt 0:00:20]} Bc7 {[%emt 0:00:01]} 28. h3 {[%emt 0:00:50]} f4 {[%emt 0:00:33]} 29. Rxd8 {[%emt 0:10:03]} Rxd8 {[%emt 0:00:08]} 30. Rd1 {[%emt 0:00:05]} Rxd1 {[%emt 0:01:50]} 31. Kxd1 {[%emt 0:00:01]} g5 {[%emt 0:00:09]} 32. Ke2 {[%emt 0:00:09]} h5 {[%emt 0:00:05]} 33. Kf3 {[%emt 0:00:19]} Ke6 {[%emt 0:00:33]} 34. g4 {[%emt 0:00:41]} h4 {[%emt 0:00:12]} 35. Ke2 {[%emt 0:00:18]} Bd8 {[%emt 0:06:30]} 36. Kd3 {[%emt 0:01:12]} Bf6 {[%emt 0:00:23]} 37. Nd2 {[%emt 0:00:09]} Kd6 {[%emt 0:00:04]} 38. Kc4 {[%emt 0:00:07]} Be7 {[%emt 0:00:19]} 39. Kb3 {[%emt 0:01:01]} Bd8 {[%emt 0:00:14]} 40. Nf3 {[%emt 0:00:33]} Bf6 {[%emt 0:00:23]} 41. Nd2 {[%emt 0:05:53]} Bd8 {[%emt 0:00:42]} 42. Ka3 {[%emt 0:00:34]} Kd7 {[%emt 0:01:52]} 43. Kb2 {[%emt 0:04:17]} Ke6 {[%emt 0:00:27]} 44. Kc2 {[%emt 0:00:34]} Kd7 {[%emt 0:00:21]} 45. Nb3 {[%emt 0:10:35]} Bb6 {[%emt 0:06:56]} 46. Kd3 {[%emt 0:00:20]} Kd6 {[%emt 0:03:14]} 47. c4 {[%emt 0:01:49]} Bd8 {[%emt 0:04:39]} 48. a5 {[%emt 0:00:31]} Be7 {[%emt 0:01:42]} 49. Nd2 {[%emt 0:00:10]} Ke6 {[%emt 0:01:03]} 50. Kc3 {[%emt 0:00:27]} Bd8 {[%emt 0:01:28]} 51. Kb3 {[%emt 0:01:52]} c5 {[%emt 0:01:08]} 52. b5 {[%emt 0:00:39]} axb5 {[%emt 0:00:26]} 53. a6 {[%emt 0:00:11]} bxc4+ {[%emt 0:00:04]} 54. Nxc4 {[%emt 0:00:06]} Bb6 {[%emt 0:00:12]} 1-0